bitfinex/quotes_BTCUSD_20241222
["timestamp","ask_amount","ask_price","bid_price","bid_amount"]
[1734906606666,0.12204717,94963.0,94960.0,0.210614]
[1734906606860,0.210551,94989.0,94955.0,0.02128607]
[1734906606861,0.02073877,94989.0,94955.0,0.02128607]
[1734906607020,0.003,94963.0,94962.0,0.36061]
[1734906607848,0.003,94963.0,94962.0,0.48641]
[1734906608048,0.02073877,94986.0,94985.0,0.210559]
[1734906608468,0.02073877,94986.0,94985.0,0.440759]
[1734906609099,0.02073877,94986.0,94985.0,0.651318]
[1734906609268,0.02573877,94986.0,94985.0,0.651318]
[1734906609472,0.02073877,94986.0,94985.0,0.651318]
[1734906610498,0.02273877,94986.0,94985.0,0.651318]
[1734906610922,0.02273877,94986.0,94985.0,0.69374788]
[1734906611145,0.02273877,94986.0,94985.0,0.73964788]
[1734906611877,0.02073877,94986.0,94985.0,0.73964788]
[1734906612059,0.02173877,94986.0,94985.0,0.74464788]
[1734906612315,0.02073877,94986.0,94985.0,0.73964788]
[1734906612728,0.02173877,94986.0,94985.0,0.74464788]
[1734906613266,0.02173877,94986.0,94985.0,0.86764788]
[1734906613461,0.00033252,94992.0,94991.0,0.390546]
[1734906615105,0.0756,95037.0,95028.0,0.03]
[1734906615314,0.1013084,95036.0,95028.0,0.03]
[1734906615517,0.1013084,95036.0,95034.0,0.03]
[1734906616095,0.1013084,95036.0,95035.0,0.240448]
[1734906616819,0.1053084,95036.0,95035.0,0.240448]
[1734906617220,0.1013084,95036.0,95035.0,0.240448]
[1734906617850,0.00053862,95037.0,95035.0,0.240448]
[1734906618057,0.10184702,95037.0,95035.0,0.240448]
[1734906618535,0.005,95036.0,95035.0,0.240448]
[1734906618729,0.00053862,95037.0,95035.0,0.240448]
[1734906619179,0.00553862,95037.0,95035.0,0.240448]
[1734906619389,0.00053862,95037.0,95035.0,0.240448]
[1734906619720,0.005,95036.0,95035.0,0.240448]
[1734906619929,0.005,95036.0,95035.0,0.26201572]
[1734906620119,0.00053862,95037.0,95036.0,0.1096]
[1734906620341,0.00653862,95037.0,95035.0,0.21461572]
[1734906620944,0.00653862,95037.0,95036.0,0.15]
[1734906621906,0.00053862,95037.0,95036.0,0.15105201]
[1734906622867,0.00153862,95037.0,95036.0,0.16005201]
[1734906623071,0.00053862,95037.0,95036.0,0.15105201]
[1734906623291,0.00053862,95037.0,95036.0,0.15]
[1734906623479,0.00153862,95037.0,95036.0,0.159]
[1734906624259,0.00153862,95037.0,95036.0,0.16005208]
[1734906624864,0.00053862,95037.0,95036.0,0.15105208]
[1734906625294,0.00053862,95037.0,95036.0,0.002]
[1734906625491,0.00053862,95037.0,95035.0,0.21461572]
[1734906625686,0.00053862,95037.0,95036.0,0.00105208]
[1734906625886,0.00053862,95037.0,95036.0,0.10505208]
[1734906626086,0.00053862,95037.0,95036.0,0.10105208]
[1734906626449,0.00053862,95037.0,95036.0,0.104]
[1734906626644,0.00053862,95037.0,95036.0,0.1]
[1734906628017,0.00070962,95037.0,95036.0,0.105]
[1734906630282,0.00070962,95037.0,95035.0,0.19261572]
[1734906632181,0.00070962,95037.0,95035.0,0.19761572]
[1734906632599,0.000171,95067.0,95036.0,0.17405207]
[1734906632806,0.00033228,95057.0,95056.0,0.438202]
[1734906633018,0.0001712,95086.0,95083.0,0.210342]
[1734906633664,0.0001712,95086.0,95083.0,0.3813774]
[1734906633869,0.09215956,95107.0,95083.0,0.3813774]
[1734906633870,0.09215956,95107.0,95084.0,0.15]
[1734906634041,0.08178786,95107.0,95087.0,0.210333]
[1734906634278,0.08194928,95107.0,95106.0,0.210291]
[1734906634483,0.00016142,95107.0,95106.0,0.210291]
[1734906634727,0.00016142,95107.0,95106.0,0.4930774]
[1734906634929,0.0001714,95110.0,95107.0,0.15]
[1734906635149,0.000171,95115.0,95109.0,0.15]
[1734906635355,0.000171,95115.0,95114.0,0.210273]
[1734906636519,0.000171,95115.0,95114.0,0.4345814]
[1734906636721,0.000171,95115.0,95114.0,0.35590204]
[1734906636918,0.000171,95115.0,95114.0,0.45590204]
[1734906637096,0.000171,95115.0,95114.0,0.63954695]
[1734906637506,0.000171,95163.0,95119.0,0.1]
[1734906637722,4e-07,95120.0,95119.0,0.40900427]
[1734906638090,4e-07,95120.0,95119.0,0.44081404]
[1734906639248,0.0030004,95120.0,95119.0,0.210262]
[1734906639623,0.0030004,95120.0,95119.0,0.22946222]
[1734906640079,4e-07,95120.0,95119.0,0.22946222]
[1734906640289,0.0040004,95120.0,95119.0,0.01920022]
[1734906640636,0.0040004,95120.0,95119.0,0.21131316]
[1734906640857,0.0040004,95120.0,95119.0,0.210262]
[1734906641700,4e-07,95120.0,95119.0,0.5615704]
[1734906641936,4e-07,95120.0,95119.0,0.5655704]
[1734906642308,4e-07,95120.0,95119.0,0.5565704]
[1734906642471,0.0010004,95120.0,95119.0,0.5635704]
[1734906642931,4e-07,95120.0,95119.0,0.5565704]
[1734906643132,0.0010004,95120.0,95119.0,0.5625704]
[1734906645025,0.0010004,95120.0,95119.0,1.0985704]
[1734906645226,0.02045,95170.0,95132.0,0.483234]
[1734906645227,2e-07,95133.0,95132.0,0.483234]
[1734906645441,2e-07,95133.0,95132.0,0.5845424]
[1734906646221,2e-07,95133.0,95132.0,0.5615424]
[1734906646420,2e-07,95133.0,95132.0,0.5845424]
[1734906646722,0.0030002,95133.0,95132.0,0.5845424]
[1734906646977,0.0030002,95133.0,95132.0,0.61400981]
[1734906647150,2e-07,95133.0,95132.0,0.61400981]
[1734906647348,0.0040002,95133.0,95132.0,0.61400981]
[1734906648263,0.0040002,95133.0,95132.0,0.6311221]
[1734906648461,2e-07,95133.0,95132.0,0.6311221]
[1734906648815,0.0040002,95133.0,95132.0,0.6311221]
[1734906649184,2e-07,95133.0,95132.0,0.66398283]
[1734906649871,0.02045,95170.0,95162.0,0.210167]
[1734906650072,0.00070909,95163.0,95162.0,0.210167]
[1734906650268,0.00070909,95163.0,95151.0,0.210192]
[1734906650475,0.00070909,95163.0,95162.0,0.210167]
[1734906652215,0.10201749,95163.0,95162.0,0.22772782]
[1734906652451,0.10201749,95163.0,95162.0,0.210167]
[1734906653461,0.10901749,95163.0,95162.0,0.211167]
[1734906654109,0.10901749,95163.0,95162.0,0.001]
[1734906654670,0.10201749,95163.0,95162.0,0.210167]
[1734906656473,0.10201749,95163.0,95161.0,0.01774357]
[1734906656715,0.10201749,95163.0,95162.0,0.210167]
[1734906657908,0.10501749,95163.0,95154.0,0.210185]
[1734906658142,0.1013084,95162.0,95154.0,0.210185]
[1734906658305,0.1013084,95162.0,95151.0,0.21019]
[1734906658974,0.1013084,95162.0,95143.0,0.210208]
[1734906658975,0.0784,95161.0,95144.0,0.210207]
[1734906659139,0.1013084,95160.0,95143.0,0.01721753]
[1734906659329,0.3114804,95160.0,95145.0,0.210205]
[1734906659506,0.3114804,95160.0,95145.0,0.42041]
[1734906659916,0.1013084,95153.0,95120.0,0.01752038]
[1734906660143,0.21021,95143.0,95128.0,0.210241]
[1734906660316,0.1013084,95142.0,95102.0,0.210299]
[1734906660528,0.210226,95136.0,95120.0,0.210258]
[1734906660729,0.1013084,95135.0,95120.0,0.210258]
[1734906660949,0.1013084,95135.0,95125.0,0.210248]
[1734906661525,0.1013084,95135.0,95111.0,0.21028]
[1734906661758,0.1013084,95135.0,95129.0,0.210238]
[1734906661989,0.1093084,95135.0,95129.0,0.210238]
[1734906662181,0.1013084,95135.0,95129.0,0.210238]
[1734906662526,0.1083084,95135.0,95132.0,8.55e-05]
[1734906662721,0.210229,95134.0,95132.0,8.55e-05]
[1734906662942,0.1013084,95133.0,95132.0,8.55e-05]
[1734906663928,0.10184616,95133.0,95132.0,8.55e-05]
[1734906664351,0.00053776,95133.0,95132.0,8.55e-05]
[1734906664553,0.00053776,95133.0,95132.0,0.16842196]
[1734906664753,0.02045,95170.0,95162.0,0.210167]
[1734906665029,0.10164069,95163.0,95162.0,0.210167]
[1734906665232,0.00033229,95163.0,95160.0,0.210171]
[1734906665756,0.00033229,95163.0,95162.0,0.210167]
[1734906668185,0.00033229,95163.0,95162.0,0.22790111]
[1734906668394,0.00033229,95163.0,95162.0,0.22990111]
[1734906668797,0.00033229,95163.0,95162.0,0.22790111]
[1734906669042,0.00033229,95163.0,95162.0,0.23390111]
[1734906670158,0.00033229,95163.0,95162.0,0.02373411]
[1734906670359,0.00033229,95163.0,95162.0,0.02478475]
[1734906670611,0.00033229,95163.0,95162.0,0.25550294]
[1734906670980,0.00033229,95163.0,95162.0,0.23671819]
[1734906671401,0.00033229,95163.0,95162.0,0.23071819]
[1734906671580,0.00033229,95163.0,95162.0,0.23771819]
[1734906671954,0.00033229,95163.0,95162.0,0.23071819]
[1734906672159,0.00033229,95163.0,95162.0,0.23771819]
[1734906672412,0.00033229,95163.0,95162.0,0.23071819]
[1734906672765,0.00033229,95163.0,95162.0,0.23671819]
[1734906673095,0.00033229,95163.0,95162.0,0.38071819]
[1734906674435,0.00033229,95163.0,95162.0,0.38671819]
[1734906674843,0.00033229,95163.0,95162.0,0.38071819]
[1734906675047,0.00033229,95163.0,95162.0,0.38971819]
[1734906676248,0.00033229,95163.0,95162.0,0.4191856]
[1734906677054,2.9e-07,95163.0,95162.0,0.52388732]
[1734906677451,2.9e-07,95163.0,95162.0,0.56642659]
[1734906677633,0.000171,95203.0,95191.0,0.210101]
[1734906677836,0.0144473,95195.0,95194.0,0.210097]
[1734906678244,0.0144473,95195.0,95194.0,0.360097]
[1734906679079,3e-07,95195.0,95194.0,0.7101714]
[1734906679227,3e-07,95195.0,95194.0,0.5614054]
[1734906679439,3e-07,95195.0,95194.0,0.57891651]
[1734906680016,0.000171,95203.0,95194.0,0.37481951]
[1734906680242,0.000171,95203.0,95202.0,0.360079]
[1734906682285,0.000171,95203.0,95202.0,0.368079]
[1734906682512,0.000171,95203.0,95202.0,0.360079]
[1734906682905,0.000171,95203.0,95202.0,0.368079]
[1734906683173,0.000171,95203.0,95202.0,0.360079]
[1734906683831,0.08,95236.0,95215.0,0.21005]
[1734906684408,0.08,95236.0,95215.0,0.23116881]
[1734906684613,0.08,95236.0,95215.0,0.38116881]
[1734906685177,0.08,95236.0,95215.0,0.25416881]
[1734906685392,0.209916,95276.0,95215.0,0.25416881]
[1734906685393,0.0758,95272.0,95222.0,0.210034]
[1734906685567,0.00070823,95229.0,95228.0,0.360022]
[1734906686175,0.00070823,95229.0,95228.0,0.210022]
[1734906687919,0.00070823,95229.0,95228.0,0.217022]
[1734906688286,0.00070823,95229.0,95228.0,0.210022]
[1734906690282,0.00070823,95229.0,95227.0,0.01715742]
[1734906690465,0.00070823,95229.0,95226.0,0.210026]
[1734906690698,0.00070823,95229.0,95228.0,0.210022]
[1734906691318,0.00070823,95229.0,95228.0,0.211022]
[1734906691518,0.00070823,95229.0,95228.0,0.210022]
[1734906691938,0.00070823,95229.0,95228.0,0.214022]
[1734906692198,0.00070823,95229.0,95228.0,0.210022]
[1734906692629,0.00070823,95229.0,95228.0,0.214022]
[1734906692758,0.00070823,95229.0,95228.0,0.210022]
[1734906693168,0.1,95273.0,95226.0,0.22700936]
[1734906693169,0.209909,95279.0,95235.0,0.746006]
[1734906693389,0.12716908,95310.0,95235.0,0.746006]
[1734906693390,0.1013084,95254.0,95239.0,0.209997]
[1734906694481,0.1013084,95254.0,95235.0,0.536]
[1734906694681,0.1013084,95254.0,95248.0,0.209976]
[1734906695186,0.1013084,95254.0,95235.0,0.536]
[1734906695388,0.1013084,95254.0,95249.0,0.209975]
[1734906695819,0.1013084,95254.0,95249.0,0.41995]
[1734906697746,0.209854,95304.0,95286.0,0.27111993]
[1734906697947,0.2513084,95287.0,95286.0,0.27111993]
[1734906698353,0.1013084,95287.0,95286.0,0.27111993]
[1734906698897,0.1013084,95287.0,95286.0,0.27211993]
[1734906699088,0.1243084,95287.0,95286.0,0.27111993]
[1734906699572,0.1243084,95287.0,95286.0,0.27211993]
[1734906700232,0.1243084,95287.0,95286.0,0.14511993]
[1734906700765,0.1243084,95287.0,95286.0,0.14411993]
[1734906700965,0.1243084,95287.0,95286.0,0.14511993]
[1734906701167,0.1013084,95287.0,95286.0,0.14511993]
[1734906701442,0.1013084,95287.0,95286.0,0.14411993]
[1734906701646,0.1013084,95287.0,95286.0,0.14511993]
[1734906701855,0.1013084,95287.0,95286.0,0.14411993]
[1734906702254,0.1013084,95287.0,95286.0,0.14511993]
[1734906702473,0.1013084,95287.0,95286.0,0.14411993]
[1734906702959,0.1013084,95287.0,95284.0,0.209897]
[1734906703163,0.1013084,95286.0,95284.0,0.209897]
[1734906704510,0.01562864,95309.0,95295.0,0.419745]
[1734906704660,0.1013084,95299.0,95295.0,0.209872]
[1734906704837,0.1013084,95299.0,95295.0,0.419746]
[1734906705385,0.1013084,95299.0,95295.0,0.209874]
[1734906705624,0.1013084,95299.0,95295.0,0.419748]
[1734906705825,0.1013084,95299.0,95297.0,0.209868]
[1734906706035,0.1013084,95299.0,95296.0,0.209872]
[1734906706843,0.1013084,95299.0,95285.0,0.1]
[1734906707041,0.1013084,95299.0,95292.0,0.20988]
[1734906707241,0.1013084,95299.0,95296.0,0.20987]
[1734906707684,0.1013084,95299.0,95283.0,0.1]
[1734906707913,0.1013084,95299.0,95290.0,0.209885]
[1734906708528,0.1013084,95299.0,95291.0,0.419766]
[1734906708883,0.3111804,95296.0,95293.0,0.536]
[1734906709106,0.023,95295.0,95294.0,0.536]
[1734906709269,0.1243084,95295.0,95294.0,0.536]
[1734906710176,0.1013084,95295.0,95294.0,0.409]
[1734906710379,0.1243084,95295.0,95294.0,0.409]
[1734906712427,0.1283084,95295.0,95294.0,0.409]
[1734906712624,0.1243084,95295.0,95294.0,0.409]
[1734906713060,0.1283084,95295.0,95294.0,0.41]
[1734906714421,0.3520084,95295.0,95294.0,0.41]
[1734906714940,0.3430084,95295.0,95294.0,0.409]
[1734906715136,0.3470084,95295.0,95294.0,0.41]
[1734906715540,0.3430084,95295.0,95294.0,0.409]
[1734906715923,0.3470084,95295.0,95294.0,0.41]
[1734906716563,0.3470084,95295.0,95294.0,0.001]
[1734906716564,0.36841532,95295.0,95294.0,0.001]
[1734906716895,0.232912,95278.0,95277.0,0.282]
[1734906717092,0.3342204,95278.0,95277.0,0.282]
[1734906717586,0.5579204,95278.0,95277.0,0.282]
[1734906718227,0.57921293,95278.0,95277.0,0.282]
[1734906718379,0.173,95277.0,95242.0,0.282]
[1734906718577,0.2743084,95277.0,95242.0,0.282]
[1734906719380,0.023,95274.0,95243.0,0.282]
[1734906719585,0.1243084,95250.0,95244.0,0.282]
[1734906720158,0.01096946,95345.0,95255.0,0.282]
[1734906720355,0.1013084,95276.0,95263.0,0.209944]
[1734906720557,0.1013084,95276.0,95270.0,0.209927]
[1734906720866,0.1013084,95276.0,95270.0,0.419856]
[1734906721235,0.1013084,95276.0,95270.0,0.209927]
[1734906721443,0.1013084,95276.0,95270.0,0.419856]
[1734906721811,0.1013084,95276.0,95270.0,0.209927]
[1734906722057,0.1013084,95276.0,95272.0,0.209925]
[1734906722255,0.1053084,95276.0,95271.0,0.2048]
[1734906723035,0.1013084,95276.0,95271.0,0.2048]
[1734906723232,0.1013084,95276.0,95272.0,0.209925]
[1734906723440,0.1053084,95276.0,95272.0,0.209925]
[1734906724042,0.1053084,95276.0,95272.0,0.41985]
[1734906724417,0.1053084,95276.0,95272.0,0.209925]
[1734906724820,0.1013084,95276.0,95272.0,0.209925]
[1734906725077,0.1013084,95276.0,95273.0,0.2048]
[1734906725277,0.1053084,95276.0,95274.0,0.0778]
[1734906725659,0.1053084,95276.0,95275.0,0.0778]
[1734906726103,0.1013084,95276.0,95275.0,0.0778]
[1734906726459,0.1053084,95276.0,95275.0,0.0778]
[1734906726661,0.1013084,95276.0,95275.0,0.0778]
[1734906728601,0.1053084,95276.0,95275.0,0.0788]
[1734906730264,0.1053084,95276.0,95274.0,0.16172]
[1734906730827,0.1053084,95276.0,95269.0,0.20993]
[1734906732167,0.1053084,95276.0,95271.0,0.209926]
[1734906732585,0.1013084,95276.0,95271.0,0.209926]
[1734906733504,0.1063084,95276.0,95274.0,0.001]
[1734906733688,0.1013084,95276.0,95271.0,0.209926]
[1734906733913,0.1014792,95276.0,95271.0,0.209926]
[1734906734042,0.1074792,95276.0,95271.0,0.210926]
[1734906734440,0.1074792,95276.0,95271.0,0.001]
[1734906735351,0.1074792,95276.0,95260.0,0.2289]
[1734906735592,0.1074792,95276.0,95262.0,0.1]
[1734906735827,0.1074792,95276.0,95263.0,0.209944]
[1734906736318,0.1014792,95276.0,95263.0,0.209944]
[1734906736539,0.1064792,95276.0,95268.0,0.209933]
[1734906737054,0.1014792,95276.0,95265.0,0.209939]
[1734906737302,0.1064792,95276.0,95265.0,0.209939]
[1734906737512,0.1064792,95276.0,95265.0,0.419879]
[1734906737758,0.1014792,95276.0,95265.0,0.419879]
[1734906737959,0.1014792,95276.0,95265.0,0.209939]
[1734906738781,0.1014792,95276.0,95261.0,0.536]
[1734906739087,0.1014792,95276.0,95263.0,0.209945]
[1734906739255,0.1084792,95276.0,95272.0,0.209924]
[1734906739666,0.1014792,95276.0,95272.0,0.209924]
[1734906739878,0.1084792,95276.0,95272.0,0.209924]
[1734906740066,0.1084792,95276.0,95273.0,0.536]
[1734906740269,0.1014792,95276.0,95274.0,0.409]
[1734906740690,0.1084792,95276.0,95274.0,0.409]
[1734906740889,0.1014792,95276.0,95274.0,0.409]
[1734906743130,0.1074792,95276.0,95274.0,0.409]
[1734906743276,0.1014792,95276.0,95274.0,0.409]
[1734906743628,0.1014792,95276.0,95274.0,0.41]
[1734906743827,0.0061708,95276.0,95275.0,0.699418]
[1734906744035,0.0061708,95276.0,95275.0,0.748218]
[1734906744234,0.0061708,95276.0,95275.0,0.848218]
[1734906744609,0.0929829,95304.0,95298.0,0.209867]
[1734906744812,0.10158623,95299.0,95298.0,0.209867]
[1734906745330,0.10158623,95299.0,95288.0,0.20989]
[1734906745533,0.1013084,95298.0,95295.0,0.209873]
[1734906747346,0.1013084,95298.0,95295.0,0.210873]
[1734906747558,0.1013084,95298.0,95297.0,0.20987]
[1734906750327,0.1013084,95298.0,95296.0,0.4028292]
[1734906750606,0.1013084,95298.0,95297.0,0.20987]
[1734906751995,0.1013084,95298.0,95297.0,0.6126992]
[1734906754627,0.1013084,95298.0,95297.0,0.63262954]
[1734906755225,0.1013084,95298.0,95297.0,0.42275954]
[1734906755850,0.1013084,95298.0,95297.0,0.6126992]
[1734906756665,0.1013084,95298.0,95297.0,0.4028292]
[1734906757945,0.1013084,95298.0,95297.0,0.4038292]
[1734906758577,0.1013084,95298.0,95297.0,0.4029145]
[1734906758956,0.101479,95298.0,95297.0,0.4029145]
[1734906760225,0.101479,95298.0,95297.0,0.2759145]
[1734906760884,0.101479,95298.0,95297.0,0.2769145]
[1734906761087,0.101479,95298.0,95297.0,0.2759145]
[1734906761490,0.101479,95298.0,95297.0,0.2769145]
[1734906761695,0.101479,95298.0,95297.0,0.2759145]
[1734906762012,0.101479,95298.0,95297.0,0.2769145]
[1734906762388,0.101479,95298.0,95297.0,0.2759145]
[1734906762771,0.101479,95298.0,95297.0,0.2769145]
[1734906764212,0.101479,95298.0,95297.0,0.2759145]
[1734906764413,0.101479,95298.0,95297.0,0.2769145]
[1734906764612,0.0001706,95298.0,95297.0,0.5679845]
[1734906764813,0.0001706,95298.0,95297.0,0.6679845]
[1734906764969,0.0001706,95298.0,95297.0,0.7157845]
[1734906765175,0.0001706,95298.0,95297.0,0.5877845]
[1734906765569,0.0001706,95298.0,95297.0,0.5887845]
[1734906765793,0.0001706,95298.0,95297.0,0.60685023]
[1734906765995,0.0001706,95298.0,95297.0,0.60585023]
[1734906768749,0.0001706,95298.0,95297.0,0.60685023]
[1734906769153,0.101479,95298.0,95297.0,0.2311145]
[1734906769332,0.101479,95298.0,95297.0,0.1499145]
[1734906770231,0.101479,95298.0,95297.0,0.5589145]
[1734906770648,0.101479,95298.0,95297.0,0.5579145]
[1734906775176,0.311346,95298.0,95297.0,0.5579145]
[1734906775525,0.311346,95298.0,95297.0,0.0219145]
[1734906776534,0.311346,95298.0,95288.0,0.536]
[1734906776535,0.209882,95292.0,95288.0,0.4309145]
[1734906776723,0.209885,95290.0,95288.0,0.4309145]
[1734906776883,0.1013084,95289.0,95288.0,0.4309145]
[1734906778238,0.209903,95282.0,95279.0,0.4309145]
[1734906778447,0.209907,95280.0,95279.0,0.4309145]
[1734906778653,0.3112154,95280.0,95279.0,0.4309145]
[1734906780248,0.1013084,95280.0,95269.0,0.3039145]
[1734906780447,0.1013084,95279.0,95270.0,0.3039145]
[1734906780821,0.209912,95278.0,95270.0,0.3039145]
[1734906780954,0.1013084,95277.0,95270.0,0.3039145]
[1734906781163,0.209916,95276.0,95270.0,0.3039145]
[1734906781386,0.1013084,95275.0,95270.0,0.3039145]
[1734906781749,0.1013084,95275.0,95270.0,0.3049145]
[1734906781951,0.1013084,95275.0,95270.0,0.3039145]
[1734906782391,0.20992,95274.0,95270.0,0.3039145]
[1734906782589,0.1013084,95273.0,95270.0,0.3039145]
[1734906782789,0.1013084,95273.0,95268.0,0.0831854]
[1734906782790,0.209927,95271.0,95268.0,8.54e-05]
[1734906782990,0.209931,95269.0,95268.0,8.54e-05]
[1734906783197,0.3112394,95269.0,95268.0,8.54e-05]
[1734906784297,0.3113689,95269.0,95268.0,8.54e-05]
[1734906785337,0.209947,95263.0,95255.0,0.2542853]
[1734906785519,0.1013084,95262.0,95255.0,0.2542853]
[1734906786735,0.209951,95260.0,95255.0,0.2542853]
[1734906786999,0.209956,95258.0,95246.0,0.2542853]
[1734906787202,0.209966,95254.0,95246.0,0.2542853]
[1734906787354,0.20996,95256.0,95246.0,0.2542853]
[1734906787355,0.1013084,95253.0,95246.0,0.4642673]
[1734906787566,0.1013084,95253.0,95246.0,0.2542853]
[1734906787963,0.209969,95252.0,95246.0,0.2542853]
[1734906788214,0.209973,95250.0,95247.0,0.2542853]
[1734906788431,0.1013084,95249.0,95247.0,0.2542853]
[1734906788630,0.209978,95248.0,95247.0,0.2542853]
[1734906788829,0.1013084,95248.0,95247.0,0.2542853]
[1734906790017,0.1063084,95248.0,95247.0,0.2542853]
[1734906790276,0.1063084,95248.0,95238.0,0.1272853]
[1734906790480,0.209982,95246.0,95238.0,0.1272853]
[1734906790623,0.1013084,95245.0,95238.0,0.1272853]
[1734906791240,0.209992,95242.0,95239.0,0.1272853]
[1734906791459,0.209995,95240.0,95239.0,0.1272853]
[1734906791700,0.3113034,95240.0,95239.0,0.1272853]
[1734906791917,0.1013084,95240.0,95239.0,0.1272853]
[1734906792898,0.10243784,95240.0,95239.0,0.1272853]
[1734906793117,0.10143784,95240.0,95239.0,0.1272853]
[1734906794264,0.10143784,95240.0,95230.0,0.1272853]
[1734906794444,0.3113064,95239.0,95230.0,0.1272853]
[1734906794992,0.210007,95235.0,95230.0,0.1272853]
[1734906795208,0.1013084,95234.0,95229.0,0.0002853]
[1734906795382,0.210011,95233.0,95229.0,0.0002853]
[1734906795590,0.1013084,95232.0,95229.0,0.0002853]
[1734906795975,0.210015,95231.0,95229.0,0.0002853]
[1734906796318,0.210011,95233.0,95228.0,8.54e-05]
[1734906796319,0.21002,95229.0,95228.0,8.54e-05]
[1734906796484,0.3113284,95229.0,95228.0,8.54e-05]
[1734906797496,0.3343284,95229.0,95228.0,8.54e-05]
[1734906798185,0.35065328,95229.0,95228.0,8.54e-05]
[1734906799348,0.35065328,95229.0,95183.0,8.56e-05]
[1734906799349,0.233079,95202.0,95183.0,8.56e-05]
[1734906799524,0.4843874,95202.0,95183.0,8.56e-05]
[1734906799725,0.54010614,95202.0,95183.0,8.56e-05]
[1734906800138,0.1243084,95202.0,95183.0,8.56e-05]
[1734906800297,0.1243084,95202.0,95195.0,0.210093]
[1734906800298,0.1013084,95202.0,95195.0,0.210093]
[1734906800506,0.1013084,95201.0,95195.0,0.210093]
[1734906800719,0.1013084,95201.0,95195.0,0.210094]
[1734906800934,0.1013084,95201.0,95190.0,0.210104]
[1734906801143,0.1013084,95201.0,95191.0,0.210103]
[1734906801584,0.1013084,95201.0,95195.0,0.210093]
[1734906802388,0.1073084,95201.0,95195.0,0.210093]
[1734906802595,0.1073084,95201.0,95192.0,0.210101]
[1734906802773,0.1013084,95201.0,95192.0,0.210101]
[1734906803123,0.1073084,95201.0,95195.0,0.001]
[1734906803503,0.01074547,95200.0,95195.0,0.001]
[1734906803676,0.210088,95198.0,95195.0,0.001]
[1734906803882,0.1013084,95197.0,95195.0,0.001]
[1734906804721,0.1013084,95197.0,95191.0,0.5]
[1734906804914,0.1013084,95197.0,95192.0,0.001]
[1734906805122,0.100792,95197.0,95192.0,0.211101]
[1734906805415,0.100792,95197.0,95191.0,0.5]
[1734906805618,0.104792,95197.0,95191.0,0.5]
[1734906805831,0.100792,95197.0,95191.0,0.5]
[1734906806158,0.105792,95197.0,95191.0,0.5]
[1734906806440,0.100792,95197.0,95191.0,0.5]
[1734906808026,0.107792,95197.0,95191.0,0.501]
[1734906808209,0.107792,95197.0,95191.0,0.5010856]
[1734906808411,0.100792,95197.0,95192.0,0.210101]
[1734906808659,0.009,95197.0,95196.0,0.256092]
[1734906809080,0.00014625,95202.0,95201.0,0.210081]
[1734906809239,0.10145465,95202.0,95201.0,0.210081]
[1734906810303,0.10145465,95202.0,95197.0,0.0002853]
[1734906810501,0.1013084,95201.0,95197.0,0.0002853]
[1734906811773,0.1013084,95201.0,95199.0,0.210086]
[1734906812366,0.1013084,95201.0,95200.0,0.0002853]
[1734906812693,0.1033084,95201.0,95200.0,0.0002853]
[1734906812892,0.1013084,95201.0,95200.0,0.0002853]
[1734906813296,0.1023084,95201.0,95200.0,0.0002853]
[1734906814558,0.1013084,95201.0,95200.0,0.0002853]
[1734906814709,0.1023084,95201.0,95200.0,0.0002853]
[1734906815124,0.1013084,95201.0,95200.0,0.0002853]
[1734906815331,0.1023084,95201.0,95198.0,0.210088]
[1734906815586,0.1023084,95201.0,95199.0,0.210086]
[1734906816221,0.1013084,95201.0,95199.0,0.210086]
[1734906816425,0.1023084,95201.0,95199.0,0.210086]
[1734906817636,0.1013084,95201.0,95199.0,0.210086]
[1734906817987,0.1013084,95201.0,95199.0,0.211086]
[1734906820257,0.1013084,95201.0,95199.0,0.001]
[1734906820416,0.1013084,95201.0,95199.0,0.0010856]
[1734906820611,0.1014796,95201.0,95199.0,0.2111716]
[1734906821350,0.1014796,95201.0,95199.0,0.2101716]
[1734906821522,0.1014796,95201.0,95199.0,0.2111716]
[1734906824488,0.1014796,95201.0,95199.0,0.2101716]
[1734906824901,0.1014796,95201.0,95199.0,0.2111716]
[1734906825322,0.1014796,95201.0,95199.0,0.001]
[1734906825736,0.1014796,95201.0,95199.0,0.211086]
[1734906826852,0.1014796,95201.0,95199.0,0.196086]
[1734906829371,0.0001712,95201.0,95200.0,0.0733415]
[1734906829517,0.0001712,95201.0,95200.0,0.2243918]
[1734906829709,0.0001712,95201.0,95200.0,0.2233415]
[1734906830481,0.0001712,95201.0,95199.0,0.196086]
[1734906830626,0.0001712,95201.0,95200.0,0.0010503]
[1734906831317,0.0001712,95201.0,95200.0,0.0793503]
[1734906832551,0.0001712,95201.0,95200.0,0.10078613]
[1734906833281,0.0001712,95201.0,95200.0,0.63687173]
[1734906833618,0.0001712,95201.0,95200.0,0.63582143]
[1734906834139,0.0001712,95201.0,95200.0,0.78582143]
[1734906836390,0.0001712,95201.0,95200.0,0.65882143]
[1734906837612,0.0001712,95201.0,95200.0,0.75268157]
[1734906838020,0.0011712,95201.0,95200.0,0.76168157]
[1734906839055,0.0011712,95201.0,95200.0,0.66782143]
[1734906839256,0.0011712,95201.0,95200.0,0.68867791]
[1734906839387,0.0011712,95201.0,95200.0,0.76587791]
[1734906840265,0.0011712,95201.0,95200.0,0.63887791]
[1734906840576,0.0011712,95201.0,95200.0,0.73273805]
[1734906842053,0.0011712,95201.0,95200.0,0.63887791]
[1734906844114,4.5e-07,95202.0,95200.0,0.63887791]
[1734906844278,0.0001712,95230.0,95229.0,0.21002]
[1734906844412,0.0001712,95230.0,95229.0,0.59175583]
[1734906845588,0.0001712,95230.0,95229.0,0.3818969]
[1734906845915,0.0031712,95230.0,95229.0,0.3818969]
[1734906846506,0.0031712,95230.0,95229.0,0.5919169]
[1734906847136,0.0001712,95230.0,95229.0,0.5919169]
[1734906847971,0.0001712,95230.0,95229.0,0.5949169]
[1734906849393,0.0001712,95230.0,95229.0,0.60957653]
[1734906850237,0.0001712,95230.0,95229.0,0.01765963]
[1734906850435,0.0001712,95230.0,95229.0,0.01870954]
[1734906850638,0.0001712,95230.0,95229.0,0.22872954]
[1734906850840,0.0001712,95230.0,95229.0,0.22767963]
[1734906851219,0.0001712,95230.0,95229.0,0.88451546]
[1734906855161,0.0001712,95230.0,95229.0,0.65683583]
[1734906855769,0.0001712,95230.0,95229.0,0.86685583]
[1734906859191,0.0001712,95230.0,95229.0,0.88122991]